bitfinex/quotes_SOLUSD_20250721
["timestamp","ask_amount","ask_price","bid_price","bid_amount"]
[1753119167264,0.78,195.99,195.92,5.77393503]
[1753119167265,0.72,195.98,195.92,5.77393503]
[1753119167470,0.72,195.98,195.95,10.49892093]
[1753119167683,5.16232743,195.99,195.97,10.49892093]
[1753119167684,0.06,195.99,195.97,10.49892093]
[1753119167883,0.06,195.99,195.98,11.16892093]
[1753119168979,0.06,195.99,195.98,10.49892093]
[1753119171194,0.06,195.99,195.98,11.16892093]
[1753119171390,0.06,195.99,195.98,16.27148241]
[1753119171598,0.06,195.99,195.98,11.16892093]
[1753119172316,0.06,195.99,195.98,13.26892093]
[1753119172701,0.06,195.99,195.98,18.37148241]
[1753119173101,0.06,195.99,195.98,13.26892093]
[1753119173298,0.06,195.99,195.98,12.59892093]
[1753119174025,0.06,195.99,195.98,2.1]
[1753119174214,0.06,195.99,195.98,12.59892093]
[1753119174859,0.06,195.99,195.98,18.37148241]
[1753119176222,0.06,195.99,195.98,12.59892093]
[1753119177653,0.78,195.99,195.98,2.1]
[1753119177825,0.78,195.99,195.94,10.49892093]
[1753119178026,5.82272706,195.98,195.9,0.03]
[1753119178266,10.49892093,195.95,195.9,0.03]
[1753119178553,10.49892093,195.91,195.9,0.03]
[1753119178930,26.0,195.89,195.88,0.03]
[1753119179127,73.13892093,195.89,195.88,0.03]
[1753119179371,73.85892093,195.89,195.88,0.03]
[1753119179866,63.36,195.89,195.88,0.03]
[1753119180164,62.64,195.89,195.88,0.03]
[1753119180333,36.64,195.89,195.88,0.03]
[1753119180531,0.72,195.95,195.88,10.52892093]
[1753119180831,0.72,195.95,195.92,10.49892093]
[1753119180832,36.62,195.94,195.92,10.49892093]
[1753119181032,36.62,195.94,195.93,10.49892093]
[1753119181349,36.62,195.94,195.88,0.54051664]
[1753119181350,37.3,195.94,195.91,10.49892093]
[1753119182439,0.68,195.93,195.89,10.49892093]
[1753119182638,0.68,195.93,195.88,0.03]
[1753119182639,10.49892093,195.93,195.88,0.03]
[1753119182843,0.68,195.93,195.89,10.49892093]
[1753119183038,0.68,195.93,195.89,12.49892093]
[1753119183242,36.62,195.94,195.92,10.49892093]
[1753119183445,36.62,195.94,195.91,10.49892093]
[1753119183750,37.3,195.94,195.89,2.0]
[1753119183963,0.68,195.93,195.91,10.49892093]
[1753119184136,36.62,195.94,195.9,10.49892093]
[1753119184332,36.62,195.94,195.89,2.0]
[1753119184333,11.17892093,195.93,195.89,2.0]
[1753119184554,11.17892093,195.92,195.89,2.0]
[1753119184733,10.49892093,195.92,195.89,2.0]
[1753119184933,0.68,195.91,195.89,2.0]
[1753119185130,0.68,195.91,195.88,10.52892093]
[1753119185356,10.49892093,195.93,195.88,0.03]
[1753119185548,0.68,195.9,195.88,0.03]
[1753119185892,10.49892093,195.89,195.88,0.03]
[1753119186362,16.28382674,195.89,195.88,0.03]
[1753119186657,33.06851071,195.89,195.88,0.03]
[1753119188042,5.78490581,195.89,195.88,0.03]
[1753119188258,16.28382674,195.89,195.88,0.03]
[1753119188638,5.78490581,195.89,195.88,0.03]
[1753119189443,36.62,195.9,195.88,0.03]
[1753119189642,41.72474649,195.9,195.88,0.03]
[1753119190174,36.62,195.9,195.88,0.03]
[1753119190674,36.62,195.9,195.89,10.49892093]
[1753119192048,0.68,195.95,195.89,18.30382674]
[1753119192346,36.64,195.94,195.89,2.7]
[1753119192552,37.32,195.94,195.9,10.49892093]
[1753119193254,37.32,195.94,195.89,2.0]
[1753119193255,0.68,195.93,195.89,2.0]
[1753119193454,0.68,195.92,195.89,2.0]
[1753119193761,36.64,195.91,195.89,2.0]
[1753119194361,36.64,195.91,195.89,2.7]
[1753119194662,36.64,195.91,195.9,10.49892093]
[1753119194869,36.64,195.93,195.9,10.49892093]
[1753119195162,36.64,195.93,195.91,10.49892093]
[1753119195360,36.64,195.93,195.92,10.49892093]
[1753119195562,36.64,195.93,195.92,11.19892093]
[1753119195761,36.64,195.93,195.92,10.49892093]
[1753119196560,36.62,195.94,195.92,10.49892093]
[1753119196765,26.06,195.99,195.93,11.19892093]
[1753119196766,36.62,195.96,195.93,11.19892093]
[1753119197064,36.62,195.96,195.95,10.49892093]
[1753119197274,36.62,195.96,195.95,11.19892093]
[1753119197462,26.0,195.98,195.92,5.10408078]
[1753119197664,37.17892093,195.98,195.93,10.49892093]
[1753119197864,0.68,195.97,195.92,10.49892093]
[1753119198170,37.3,195.96,195.93,10.49892093]
[1753119198375,36.62,195.96,195.93,10.49892093]
[1753119198770,36.62,195.96,195.94,10.49892093]
[1753119199169,62.62,195.98,195.95,10.49892093]
[1753119199372,62.62,195.98,195.96,10.49892093]
[1753119199567,36.62,195.98,195.97,10.49892093]
[1753119199872,0.06,195.99,195.97,11.19892093]
[1753119200074,0.06,195.99,195.91,5.61457281]
[1753119200075,0.06,195.99,195.98,15.60148241]
[1753119200377,0.06,195.99,195.98,11.19892093]
[1753119200679,0.06,195.99,195.98,16.30148241]
[1753119201274,0.74,195.99,195.93,0.7]
[1753119201576,0.74,195.99,195.9,26.0]
[1753119201577,10.49892093,195.97,195.91,10.49892093]
[1753119201875,0.68,195.96,195.91,10.49892093]
[1753119202081,36.62,195.95,195.91,10.49892093]
[1753119202281,37.3,195.95,195.92,10.49892093]
[1753119202489,36.62,195.95,195.91,10.49892093]
[1753119202656,36.62,195.95,195.93,10.49892093]
[1753119202862,36.62,195.95,195.94,10.49892093]
[1753119203057,36.62,195.98,195.94,11.19892093]
[1753119203362,36.62,195.98,195.96,10.49892093]
[1753119203784,0.06,195.99,195.92,16.78468397]
[1753119204081,0.06,195.99,195.91,2.01043846]
[1753119204082,0.06,195.99,195.98,10.49892093]
[1753119204283,36.68,195.99,195.96,10.49892093]
[1753119204463,36.68,195.99,195.97,10.49892093]
[1753119204665,36.68,195.99,195.98,10.49892093]
[1753119205058,0.06,195.99,195.98,11.19892093]
[1753119207590,0.06,195.99,195.98,16.81173855]
[1753119207793,0.06,196.03,195.99,16.78468397]
[1753119208083,0.06,196.03,196.02,10.49892093]
[1753119208583,0.06,196.03,196.02,16.30044118]
[1753119208772,0.06,196.03,196.01,5.10175854]
[1753119208978,0.06,196.03,196.02,10.49892093]
[1753119209460,0.06,196.03,196.02,11.19892093]
[1753119209862,0.06,196.03,196.02,11.70907295]
[1753119210078,0.06,196.03,196.0,0.51020408]
[1753119210284,0.68,196.02,195.93,0.7]
[1753119210473,10.49892093,196.01,195.95,10.49892093]
[1753119210674,0.68,196.0,195.93,5.80381053]
[1753119210980,0.68,196.0,195.96,10.49892093]
[1753119211186,5.10182467,196.01,195.96,10.49892093]
[1753119211382,0.71,196.01,195.97,10.49892093]
[1753119211575,36.62,196.02,195.98,10.49892093]
[1753119212084,36.62,196.02,195.99,10.49892093]
[1753119212307,36.62,196.02,196.0,10.49892093]
[1753119212492,0.06,196.03,196.0,10.49892093]
[1753119213604,0.71,196.02,195.95,5.10328988]
[1753119213788,0.71,196.02,195.97,10.49892093]
[1753119214107,0.71,196.01,195.97,10.49892093]
[1753119214284,0.71,196.0,195.97,10.49892093]
[1753119214483,0.71,196.0,195.9,0.51046452]
[1753119214484,10.49892093,195.98,195.9,0.51046452]
[1753119214700,63.33,196.0,195.91,10.49892093]
[1753119214701,16.31174279,195.97,195.91,10.49892093]
[1753119214903,47.09892093,195.96,195.9,10.49892093]
[1753119215102,10.49892093,195.95,195.89,10.49892093]
[1753119215495,73.80892093,195.96,195.9,10.49892093]
[1753119215691,73.80892093,195.96,195.9,11.99892093]
[1753119215892,63.31,195.96,195.92,10.49892093]
[1753119216294,63.31,195.96,195.93,10.49892093]
[1753119216295,26.0,195.96,195.93,10.49892093]
[1753119216621,43.92812957,195.99,195.94,10.49892093]
[1753119217111,54.4270505,195.99,195.94,10.49892093]
[1753119217313,0.71,195.98,195.93,10.49892093]
[1753119218988,5.81264853,195.98,195.93,10.49892093]
[1753119219203,41.70230856,195.99,195.95,10.49892093]
[1753119219388,36.6,195.99,195.96,10.49892093]
[1753119220308,36.6,195.99,195.98,10.49892093]
[1753119220510,5.16127321,196.03,195.98,10.49892093]
[1753119220694,0.06,196.03,196.02,10.49892093]
[1753119221099,26.06,196.03,196.02,10.49892093]
[1753119221300,0.06,196.03,196.02,10.49892093]
[1753119221813,0.06,196.03,196.02,11.19892093]
[1753119223412,0.06,196.03,196.02,16.8105932]
[1753119224390,0.06,196.03,196.02,33.59527717]
[1753119224602,0.06,196.07,196.06,26.0]
[1753119224798,0.06,196.07,196.06,63.78252583]
[1753119225010,0.06,196.08,196.06,64.99257377]
[1753119225214,0.06,196.19,196.12,26.0]
[1753119225391,0.06,196.19,196.13,11.00878683]
[1753119225590,0.06,196.19,196.13,11.19892093]
[1753119227401,0.06,196.19,196.13,33.08226395]
[1753119228606,0.06,196.18,196.13,33.08226395]
[1753119230226,0.06,196.18,196.14,16.78468397]
[1753119230396,0.06,196.18,196.17,10.49892093]
[1753119230716,0.06,196.18,196.17,47.60868287]
[1753119230964,0.06,196.18,196.17,48.30868287]
[1753119231224,0.06,196.18,196.17,42.90738135]
[1753119231421,0.06,196.18,196.17,53.40630228]
[1753119231826,0.06,196.18,196.17,42.90738135]
[1753119231992,0.06,196.18,196.17,53.40630228]
[1753119233324,0.06,196.18,196.17,52.70630228]
[1753119233526,0.06,196.18,196.17,10.49892093]
[1753119235136,0.06,196.18,196.17,11.70868287]
[1753119235334,0.06,196.18,196.17,10.49892093]
[1753119235920,0.06,196.18,196.15,42.16793128]
[1753119236106,0.06,196.18,196.17,11.19892093]
[1753119236419,0.71,196.17,196.15,0.50981391]
[1753119236617,26.71,196.17,196.13,10.49892093]
[1753119236921,26.71,196.17,196.14,10.49892093]
[1753119237124,26.71,196.17,196.1,0.7]
[1753119237311,26.71,196.17,196.11,5.09917903]
[1753119237511,0.71,196.17,196.15,10.49892093]
[1753119237731,0.06,196.18,196.15,10.49892093]
[1753119237927,5.8674606,196.18,196.14,10.49892093]
[1753119238111,0.71,196.17,196.14,10.49892093]
[1753119238311,0.71,196.17,196.15,10.49892093]
[1753119238930,0.71,196.17,196.14,10.49892093]
[1753119239427,0.06,196.18,196.16,10.49892093]
[1753119239727,0.06,196.18,196.17,47.05892093]
[1753119240432,0.06,196.18,196.17,48.26868287]
[1753119240811,0.06,196.19,196.18,42.78468397]
[1753119241010,0.2,196.22,196.21,26.0]
[1753119241212,0.06,196.23,196.21,26.0]
[1753119241418,0.06,196.23,196.22,47.05892093]
[1753119241629,0.74,196.23,196.2,10.49892093]
[1753119242111,0.06,196.23,196.22,10.49892093]
[1753119242518,0.06,196.23,196.22,11.16892093]
[1753119242815,0.06,196.23,196.22,27.9536049]
[1753119243331,0.2,196.26,196.24,5.09580105]
[1753119243513,0.2,196.26,196.25,47.05892093]
[1753119243714,0.2,196.26,196.25,47.72892093]
[1753119243927,0.2,196.26,196.25,64.5136049]
[1753119244731,0.2,196.26,196.25,11.16892093]
[1753119244931,6.9695,196.35,196.26,16.78468397]
[1753119245133,6.9695,196.35,196.27,0.67]
[1753119245331,6.9695,196.35,196.31,10.49892093]
[1753119245518,0.68,196.34,196.33,10.49892093]
[1753119245720,0.68,196.37,196.33,10.49892093]
[1753119245923,0.68,196.36,196.32,10.49892093]
[1753119246119,0.68,196.35,196.32,10.49892093]
[1753119246318,41.79132426,196.38,196.32,10.49892093]
[1753119246319,0.68,196.34,196.32,10.49892093]
[1753119246533,0.68,196.34,196.3,36.56]
[1753119246844,0.68,196.33,196.3,10.49892093]
[1753119247022,0.68,196.32,196.3,10.49892093]
[1753119247439,10.69892093,196.38,196.31,10.49892093]
[1753119247626,26.68,196.36,196.33,10.49892093]
[1753119248025,26.68,196.36,196.32,10.49892093]
[1753119248331,0.68,196.36,196.32,10.49892093]
[1753119248530,26.68,196.36,196.33,10.49892093]
[1753119248736,0.68,196.36,196.34,10.49892093]
[1753119248925,0.68,196.36,196.33,10.49892093]
[1753119249723,26.0,196.37,196.34,10.49892093]
[1753119249940,0.2,196.38,196.36,10.49892093]
[1753119250145,0.2,196.38,196.37,11.16892093]
[1753119250628,0.2,196.38,196.37,11.67816368]
[1753119250828,0.68,196.51,196.39,26.0]
[1753119251061,6.0974,196.52,196.38,16.78468397]
[1753119251062,6.0974,196.52,196.5,10.49892093]
[1753119251221,6.0974,196.52,196.47,36.54]
[1753119251222,0.68,196.51,196.47,36.54]
[1753119251423,0.68,196.5,196.46,36.54]
[1753119251733,0.68,196.49,196.46,10.49892093]
[1753119251931,0.68,196.49,196.43,5.09087206]
[1753119252131,0.68,196.49,196.46,10.49892093]
[1753119252333,0.68,196.49,196.47,10.49892093]
[1753119253627,5.76933157,196.49,196.47,10.49892093]
[1753119254145,5.08933157,196.49,196.46,10.49892093]
[1753119254353,0.68,196.48,196.46,10.49892093]
[1753119254849,0.68,196.47,196.44,10.49892093]
[1753119255150,0.68,196.46,196.44,10.49892093]
[1753119255331,0.68,196.49,196.45,10.49892093]
[1753119255525,6.7774,196.52,196.48,10.49892093]
[1753119255733,0.68,196.51,196.48,10.49892093]
[1753119256347,0.68,196.51,196.49,10.49892093]
[1753119256544,6.0974,196.52,196.49,10.49892093]
[1753119257338,6.7774,196.52,196.49,10.49892093]
[1753119257954,42.3077911,196.55,196.5,10.49892093]
[1753119258151,41.6277911,196.55,196.5,10.49892093]
[1753119258453,0.68,196.54,196.5,10.49892093]
[1753119258629,0.68,196.53,196.5,10.49892093]
[1753119260248,36.54,196.55,196.51,10.49892093]
[1753119260428,26.0,196.56,196.52,10.49892093]
[1753119260630,0.68,196.55,196.49,5.08930261]
[1753119260829,0.68,196.55,196.52,10.49892093]
[1753119261033,31.08751005,196.56,196.51,10.49892093]
[1753119261234,10.49892093,196.54,196.45,0.50903537]
[1753119261451,10.49892093,196.49,196.43,10.49892093]
[1753119261660,10.49892093,196.48,196.42,10.49892093]
[1753119261848,10.49892093,196.48,196.44,10.49892093]
[1753119261849,0.68,196.48,196.44,10.49892093]
[1753119262157,0.68,196.51,196.47,15.58863801]
[1753119262357,5.08825329,196.54,196.49,10.49892093]
[1753119262564,0.68,196.51,196.43,36.52]
[1753119262741,10.49892093,196.48,196.42,10.49892093]
[1753119262940,11.17892093,196.47,196.41,10.49892093]
[1753119263252,0.68,196.47,196.42,10.49892093]
[1753119263462,0.68,196.46,196.42,10.49892093]
[1753119263640,0.68,196.45,196.42,10.49892093]
[1753119264254,1.56,196.48,196.43,10.49892093]
[1753119264467,1.56,196.48,196.38,10.49892093]
[1753119264468,26.0,196.46,196.38,10.49892093]
[1753119264674,26.0,196.44,196.38,10.49892093]
[1753119264846,26.0,196.44,196.39,10.49892093]
[1753119265171,10.49892093,196.42,196.32,37.19]
[1753119265358,0.68,196.41,196.36,10.49892093]
[1753119265534,0.68,196.4,196.37,10.49892093]
[1753119266160,10.49892093,196.43,196.38,10.49892093]
[1753119266161,0.68,196.43,196.38,10.49892093]
[1753119266371,26.0,196.42,196.38,10.49892093]
[1753119266744,0.68,196.41,196.38,10.49892093]
[1753119267067,0.68,196.44,196.4,10.49892093]
[1753119267368,0.68,196.44,196.41,10.49892093]
[1753119268163,0.68,196.44,196.4,0.03]
[1753119268354,0.68,196.43,196.4,10.52892093]
[1753119269142,5.77038965,196.45,196.4,10.52892093]
[1753119269343,0.68,196.44,196.4,10.52892093]
[1753119269670,67.61012524,196.46,196.41,10.49892093]
[1753119269870,68.29012524,196.46,196.41,10.49892093]
[1753119270060,5.0906129,196.44,196.4,10.52892093]
[1753119270370,0.68,196.43,196.4,0.03]
[1753119270548,11.17892093,196.43,196.4,0.03]
[1753119270749,0.68,196.42,196.4,0.03]
[1753119271978,5.09115776,196.42,196.4,0.03]
[1753119272182,11.21892093,196.41,196.4,0.03]
[1753119272387,26.0,196.38,196.32,0.03]
[1753119272580,10.49892093,196.36,196.32,0.03]
[1753119273372,0.72,196.35,196.32,0.03]
[1753119275468,0.72,196.34,196.32,0.03]
[1753119275956,0.72,196.38,196.33,10.49892093]
[1753119276180,6.3047,196.41,196.33,10.49892093]
[1753119276181,78.11061949,196.4,196.35,10.49892093]
[1753119276382,0.72,196.39,196.35,10.49892093]
[1753119276681,0.72,196.38,196.34,10.49892093]
[1753119276887,78.11061949,196.4,196.32,5.12367832]
[1753119276888,10.49892093,196.39,196.33,10.49892093]
[1753119277057,0.72,196.37,196.33,10.49892093]
[1753119277390,10.49892093,196.39,196.33,10.49892093]
[1753119277686,0.72,196.38,196.33,10.49892093]
[1753119277857,0.72,196.37,196.33,10.49892093]
[1753119278476,62.52,196.4,196.33,5.09338786]
[1753119278659,67.61173796,196.4,196.35,10.49892093]
[1753119278973,62.52,196.4,196.37,10.49892093]
[1753119279165,26.0,196.4,196.37,10.49892093]
[1753119279666,26.72,196.4,196.36,10.49892093]
[1753119280173,0.72,196.39,196.36,10.49892093]
[1753119280371,11.21892093,196.38,196.32,0.03]
[1753119280599,10.49892093,196.36,196.32,0.03]
[1753119280761,10.49892093,196.37,196.32,0.03]
[1753119281081,26.0,196.37,196.33,10.49892093]
[1753119281289,0.72,196.36,196.32,0.03]
[1753119281883,0.72,196.35,196.32,0.03]
[1753119282470,26.0,196.37,196.33,10.49892093]
[1753119282687,26.0,196.37,196.34,10.49892093]
[1753119282894,0.72,196.38,196.34,10.49892093]
[1753119283196,0.72,196.37,196.33,10.49892093]
[1753119283560,36.52,196.39,196.36,10.49892093]
[1753119284086,0.72,196.38,196.32,0.03]
[1753119284285,11.21892093,196.38,196.32,10.52892093]
[1753119284492,11.21892093,196.38,196.33,10.49892093]
[1753119284493,0.72,196.38,196.33,10.49892093]
[1753119284780,0.72,196.37,196.33,10.49892093]
[1753119285357,0.72,196.36,196.33,10.49892093]
[1753119285561,0.72,196.35,196.32,10.52892093]
[1753119286178,55.5128992,196.42,196.32,10.52892093]
[1753119286179,42.78468397,196.42,196.34,10.49892093]
[1753119286373,0.72,196.4,196.35,10.49892093]
[1753119286685,0.72,196.39,196.35,10.49892093]
[1753119287259,0.72,196.38,196.34,10.49892093]
[1753119287682,15.59057982,196.4,196.34,15.59207138]
[1753119287868,11.21892093,196.38,196.32,10.52892093]
[1753119288068,0.72,196.38,196.33,10.49892093]
[1753119288271,0.72,196.37,196.33,10.49892093]
[1753119289988,5.81253207,196.37,196.34,0.03]
[1753119290560,5.09167961,196.4,196.35,10.49892093]
[1753119290762,36.52,196.39,196.36,10.49892093]
[1753119291067,5.09053793,196.45,196.38,10.49892093]
[1753119291384,5.09053793,196.45,196.4,10.49892093]
[1753119291767,0.72,196.44,196.4,10.49892093]
[1753119291963,0.72,196.44,196.39,10.49892093]
[1753119292177,5.81076507,196.44,196.37,5.77236289]
[1753119292483,5.81076507,196.44,196.39,10.49892093]
[1753119292687,10.49892093,196.42,196.36,10.49892093]
[1753119293093,0.72,196.41,196.35,5.09283543]
[1753119293264,0.72,196.41,196.37,10.49892093]
[1753119293462,0.72,196.4,196.36,10.49892093]
[1753119293691,5.09035377,196.45,196.37,15.59121484]
[1753119293895,26.0,196.43,196.4,10.49892093]
[1753119296185,26.0,196.43,196.38,10.49892093]
[1753119296394,26.0,196.43,196.39,10.49892093]
[1753119296984,26.72,196.43,196.39,10.49892093]
[1753119297188,26.0,196.43,196.39,15.59074088]
[1753119297705,0.72,196.45,196.41,10.49892093]
[1753119298073,0.72,196.45,196.4,10.49892093]
[1753119298277,10.49892093,196.43,196.34,0.03]
[1753119298594,10.49892093,196.4,196.34,10.52892093]
[1753119298807,10.49892093,196.38,196.34,0.03]
[1753119299104,36.5,196.37,196.34,0.03]
[1753119299315,52.8113739,196.37,196.34,0.03]
[1753119299590,10.49892093,196.35,196.34,0.03]
[1753119299890,1.6406,196.39,196.34,0.03]
[1753119300189,62.5,196.38,196.34,0.03]
[1753119300497,80.00468397,196.38,196.34,0.03]
[1753119300802,10.49892093,196.35,196.34,0.03]
[1753119300963,53.2836049,196.35,196.34,0.03]
[1753119301163,54.0036049,196.35,196.34,0.03]
[1753119301368,59.09655116,196.35,196.34,0.03]
[1753119302383,95.59655116,196.35,196.34,0.03]
[1753119303384,73.71892093,196.35,196.34,0.03]
[1753119303809,69.59655116,196.35,196.34,0.03]
[1753119304107,33.3225049,196.33,196.32,0.03]
[1753119304413,26.0,196.3,196.26,0.03]
[1753119304720,52.09367836,196.29,196.26,0.03]
[1753119305001,52.80367836,196.29,196.26,0.03]
[1753119305217,11.20892093,196.28,196.26,0.03]
[1753119305579,11.20892093,196.27,196.26,0.03]
[1753119305781,37.20892093,196.27,196.26,0.03]
[1753119306707,42.30394309,196.27,196.26,0.03]
[1753119307707,22.58970613,196.27,196.26,0.03]
[1753119308006,33.08862706,196.27,196.26,0.03]
[1753119308806,69.60862706,196.27,196.26,0.03]
[1753119309484,42.78468397,196.23,196.22,0.03]
[1753119309821,89.7836049,196.23,196.22,0.03]
[1753119309989,90.4936049,196.23,196.22,0.03]
[1753119310913,78.82498167,196.23,196.22,0.03]
[1753119311087,95.60966564,196.23,196.22,0.03]
[1753119311286,16.78468397,196.22,196.2,0.2]
[1753119311486,16.78468397,196.22,196.16,0.2]
[1753119311487,26.0,196.17,196.16,0.2]
[1753119311687,27.2836049,196.15,196.04,5.10074288]
[1753119311895,70.1414049,196.15,195.97,8.2197]
[1753119312116,10.49892093,196.06,196.0,0.7]
[1753119312315,36.52,196.05,195.97,8.2197]
[1753119312615,36.52,196.05,195.99,0.7]
[1753119312808,62.52,196.07,196.04,10.49892093]
[1753119312982,36.52,196.07,196.05,0.7]
[1753119313186,36.52,196.07,196.02,0.7]
[1753119313414,36.52,196.07,196.04,10.49892093]
[1753119313592,36.49892093,196.11,196.05,11.19892093]
[1753119313905,36.52,196.1,196.05,11.19892093]
[1753119314312,10.49892093,196.06,195.98,0.7]
[1753119314492,10.49892093,196.01,195.95,11.22892093]
[1753119314814,47.01892093,196.0,195.95,0.03]
[1753119315188,47.72892093,196.0,195.95,0.03]
[1753119315729,10.49892093,195.99,195.95,0.03]
[1753119315898,36.52,196.0,195.95,0.03]
[1753119316102,36.52,195.99,195.96,11.19892093]
[1753119316314,36.52,195.99,195.98,10.49892093]
[1753119316491,36.52,196.0,195.98,10.49892093]
[1753119316803,36.52,196.0,195.99,5.10230113]
[1753119316987,26.0,196.03,195.99,16.30122206]
[1753119317188,36.54,196.02,196.0,10.49892093]
[1753119317410,36.54,196.02,195.99,16.30122206]
[1753119317616,36.54,196.02,195.99,5.80230113]
[1753119317824,36.54,196.02,196.0,10.49892093]
[1753119317994,36.54,196.03,196.01,11.22892093]
[1753119318298,17.86992093,196.08,196.02,11.19892093]
[1753119318299,0.71,196.08,196.02,11.19892093]
[1753119318497,36.54,196.07,196.05,10.49892093]
[1753119318698,36.54,196.07,196.04,10.49892093]
[1753119318892,36.54,196.07,196.05,15.59966053]
[1753119319091,36.54,196.07,196.05,10.49892093]
[1753119319799,36.54,196.07,196.04,10.49892093]
[1753119320695,36.54,196.07,196.06,10.49892093]
[1753119321221,25.44888397,196.13,196.07,5.1002193]
[1753119321523,25.44888397,196.13,196.06,10.49892093]
[1753119321524,47.03892093,196.12,196.06,10.49892093]
[1753119321892,31.09866002,196.13,196.08,10.49892093]
[1753119322091,37.25,196.12,196.07,10.49892093]
[1753119322502,0.71,196.11,196.07,10.49892093]
[1753119323113,0.71,196.11,196.06,10.49892093]
[1753119323306,11.20892093,196.1,196.04,10.49892093]
[1753119323514,47.03892093,196.09,196.03,10.49892093]
[1753119323822,11.20892093,196.08,196.02,10.49892093]
[1753119324222,10.49892093,196.05,196.01,0.03]
[1753119324402,47.03892093,196.04,196.01,0.03]
[1753119324601,47.74892093,196.04,196.01,0.03]
[1753119324802,0.71,196.03,196.01,0.03]
[1753119326424,11.20892093,196.02,196.01,0.03]
[1753119327909,36.54,196.04,196.01,0.03]
[1753119328113,36.54,196.03,196.01,11.22892093]
[1753119328321,36.54,196.03,196.01,0.03]
[1753119329405,0.71,196.02,196.01,0.03]
[1753119329704,36.54,196.03,196.01,0.03]
[1753119330512,36.54,196.03,196.01,11.22892093]
[1753119330830,0.71,196.11,196.02,11.19892093]
[1753119331040,0.71,196.11,196.06,10.49892093]
[1753119331221,36.56,196.1,196.06,10.49892093]
[1753119331520,36.56,196.1,196.05,10.49892093]
[1753119331706,37.28,196.1,196.05,10.49892093]
[1753119332226,12.13402093,196.14,196.08,10.49892093]
[1753119332424,36.56,196.13,196.1,10.49892093]
[1753119332733,36.56,196.13,196.12,10.49892093]
[1753119332908,36.56,196.13,196.12,11.15892093]
[1753119333930,47.77892093,196.13,196.07,10.49892093]
[1753119334134,37.28,196.13,196.07,10.49892093]
[1753119334436,52.87772031,196.13,196.06,10.49892093]
[1753119334738,36.49892093,196.1,196.03,10.49892093]
[1753119334933,10.49892093,196.08,196.02,10.49892093]
[1753119335240,47.05892093,196.09,196.03,10.49892093]
[1753119335532,36.56,196.09,196.03,10.49892093]
[1753119336234,41.65981868,196.09,196.03,10.49892093]
[1753119336436,52.15873961,196.09,196.03,10.49892093]
[1753119337127,36.56,196.09,196.03,5.10119216]
[1753119337316,31.81943932,196.1,196.03,5.10119216]
[1753119337317,36.54,196.08,196.05,10.49892093]
[1753119337836,36.54,196.08,196.03,5.76119216]
[1753119337837,36.54,196.08,196.04,10.49892093]
[1753119338233,36.54,196.08,196.04,11.29892093]
[1753119338440,41.63997291,196.08,196.04,11.29892093]
[1753119338612,0.72,196.07,196.04,0.8]
[1753119338946,0.72,196.07,196.02,10.49892093]
[1753119339242,36.54,196.08,196.03,11.15892093]
[1753119339413,41.64002372,196.08,196.03,11.15892093]
[1753119339736,36.54,196.08,196.03,10.49892093]
[1753119340034,36.54,196.08,196.04,0.66]
[1753119340409,41.64004008,196.08,196.04,0.66]
[1753119340717,0.72,196.07,196.02,10.49892093]
[1753119340926,0.72,196.06,196.02,10.49892093]
[1753119341231,36.54,196.05,196.02,10.49892093]
[1753119341533,36.54,196.05,196.03,10.49892093]
[1753119341736,36.54,196.05,196.04,0.66]